[Event "*** Titled Tuesday Blitz"]
[Site "Chess.com"]
[Date "2020.05.26"]
[Round "3"]
[White "Elbek_Jumanov"]
[Black "TregubovP"]
[Result "1-0"]
[WhiteElo "2398"]
[BlackElo "2573"]
[TimeControl "180+1"]
[EndTime "10:27:32 PDT"]
[Termination "Elbek_Jumanov won by resignation"]

1. c4 {[%clk 0:02:59.3]} 1... c5 {[%clk 0:02:58.1]} 2. Nf3 {[%clk 0:02:59]} 2...
Nc6 {[%clk 0:02:58]} 3. Nc3 {[%clk 0:02:58.8]} 3... Nf6 {[%clk 0:02:56.5]} 4. g3
{[%clk 0:02:58.9]} 4... d5 {[%clk 0:02:55.8]} 5. cxd5 {[%clk 0:02:58]} 5... Nxd5
{[%clk 0:02:56.3]} 6. Bg2 {[%clk 0:02:58.4]} 6... Nc7 {[%clk 0:02:56.8]} 7. O-O
{[%clk 0:02:58]} 7... e5 {[%clk 0:02:57.1]} 8. d3 {[%clk 0:02:58]} 8... Be7
{[%clk 0:02:56.3]} 9. Be3 {[%clk 0:02:57.5]} 9... O-O {[%clk 0:02:50.1]} 10. Rc1
{[%clk 0:02:50.9]} 10... Be6 {[%clk 0:02:30.7]} 11. a3 {[%clk 0:02:45.9]} 11...
Nd5 {[%clk 0:02:20.1]} 12. Nxd5 {[%clk 0:02:43.7]} 12... Bxd5 {[%clk 0:02:16.3]}
13. Bxc5 {[%clk 0:02:42]} 13... Bxc5 {[%clk 0:02:14.5]} 14. Rxc5 {[%clk
0:02:41.2]} 14... Rc8 {[%clk 0:01:58.3]} 15. Nxe5 {[%clk 0:01:43.1]} 15... Bxg2
{[%clk 0:01:51]} 16. Kxg2 {[%clk 0:01:42.3]} 16... Qd6 {[%clk 0:01:48.2]} 17.
Qc1 {[%clk 0:01:41]} 17... Ne7 {[%clk 0:01:30.1]} 18. Rxc8 {[%clk 0:01:30.8]}
18... Rxc8 {[%clk 0:01:30]} 19. Qe3 {[%clk 0:01:31.3]} 19... Qd5+ {[%clk
0:01:07.2]} 20. Nf3 {[%clk 0:01:28.8]} 20... Nf5 {[%clk 0:00:57]} 21. Qf4 {[%clk
0:01:28.5]} 21... Qe6 {[%clk 0:00:47.2]} 22. Rc1 {[%clk 0:01:24.3]} 22... Rxc1
{[%clk 0:00:45.4]} 23. Qxc1 {[%clk 0:01:22.5]} 23... h6 {[%clk 0:00:45.3]} 24.
e4 {[%clk 0:01:17.2]} 24... Ne7 {[%clk 0:00:44.1]} 25. Qc7 {[%clk 0:01:15.5]}
25... Ng6 {[%clk 0:00:37.2]} 26. h3 {[%clk 0:00:59.2]} 26... Qb3 {[%clk
0:00:35.7]} 27. Qc3 {[%clk 0:00:55.3]} 27... Qd1 {[%clk 0:00:35.3]} 28. d4
{[%clk 0:00:52.2]} 28... Kh7 {[%clk 0:00:35.1]} 29. d5 {[%clk 0:00:52.3]} 29...
f6 {[%clk 0:00:33.9]} 30. Qc7 {[%clk 0:00:48.4]} 30... Qe2 {[%clk 0:00:22.1]}
31. d6 {[%clk 0:00:30.9]} 31... Qxe4 {[%clk 0:00:19]} 32. d7 {[%clk 0:00:31]}
32... Ne5 {[%clk 0:00:14.9]} 33. Qxe5 {[%clk 0:00:30.8]} 33... fxe5 {[%clk
0:00:14.5]} 34. d8=Q {[%clk 0:00:30.4]} 1-0

[Event "*** Titled Tuesday Blitz"]
[Site "Chess.com"]
[Date "2020.05.26"]
[Round "3"]
[White "Cubitas"]
[Black "JLRHei"]
[Result "1-0"]
[WhiteElo "2520"]
[BlackElo "2315"]
[TimeControl "180+1"]
[EndTime "10:27:32 PDT"]
[Termination "Cubitas won on time"]

1. e4 {[%clk 0:03:00.9]} 1... c5 {[%clk 0:02:59.6]} 2. Nf3 {[%clk 0:03:00.2]}
2... e6 {[%clk 0:02:59.8]} 3. d4 {[%clk 0:03:00.5]} 3... cxd4 {[%clk 0:03:00.7]}
4. Nxd4 {[%clk 0:03:01.1]} 4... Nf6 {[%clk 0:03:01.1]} 5. Nc3 {[%clk 0:03:01.7]}
5... d6 {[%clk 0:03:01.5]} 6. Be3 {[%clk 0:02:53.2]} 6... Be7 {[%clk 0:03:00]}
7. Be2 {[%clk 0:02:46.6]} 7... O-O {[%clk 0:02:59.5]} 8. O-O {[%clk 0:02:46.8]}
8... Nc6 {[%clk 0:02:59.7]} 9. f4 {[%clk 0:02:38.8]} 9... Bd7 {[%clk 0:02:59.5]}
10. Nb3 {[%clk 0:02:37.6]} 10... Rc8 {[%clk 0:02:43.2]} 11. Bf3 {[%clk
0:02:32.8]} 11... Qc7 {[%clk 0:02:28.2]} 12. Qe1 {[%clk 0:02:25]} 12... Na5
{[%clk 0:02:19]} 13. Nxa5 {[%clk 0:02:16.1]} 13... Qxa5 {[%clk 0:02:19.1]} 14.
Nd5 {[%clk 0:02:07.7]} 14... Qd8 {[%clk 0:01:54.5]} 15. Nxe7+ {[%clk 0:02:07.6]}
15... Qxe7 {[%clk 0:01:55.4]} 16. c3 {[%clk 0:02:05.4]} 16... a5 {[%clk
0:01:44.5]} 17. Bb6 {[%clk 0:01:58.2]} 17... a4 {[%clk 0:01:41.8]} 18. Ba5
{[%clk 0:01:56.7]} 18... Bc6 {[%clk 0:01:02.7]} 19. Bb4 {[%clk 0:01:50]} 19...
Qc7 {[%clk 0:00:53]} 20. e5 {[%clk 0:01:37.8]} 20... Bxf3 {[%clk 0:00:22.4]} 21.
Rxf3 {[%clk 0:01:35]} 21... Nd5 {[%clk 0:00:22]} 22. Bxd6 {[%clk 0:01:32.1]}
22... Qb6+ {[%clk 0:00:22.2]} 23. Qf2 {[%clk 0:01:05.1]} 23... Rfe8 {[%clk
0:00:21.9]} 24. Qxb6 {[%clk 0:00:59.8]} 24... Nxb6 {[%clk 0:00:22.8]} 25. a3
{[%clk 0:01:00]} 25... Nc4 {[%clk 0:00:18.8]} 26. Rf2 {[%clk 0:00:56.1]} 26...
Nxd6 {[%clk 0:00:13]} 27. exd6 {[%clk 0:00:55.3]} 27... Red8 {[%clk 0:00:13.6]}
28. Rd1 {[%clk 0:00:55.1]} 28... Rc6 {[%clk 0:00:13.4]} 29. Rfd2 {[%clk
0:00:55.2]} 29... Kf8 {[%clk 0:00:12.8]} 30. Rd4 {[%clk 0:00:54.7]} 30... b5
{[%clk 0:00:11.7]} 31. Kf2 {[%clk 0:00:52.9]} 31... Ke8 {[%clk 0:00:11.5]} 32.
Rb4 {[%clk 0:00:49.1]} 32... Rc5 {[%clk 0:00:08.8]} 33. Ke3 {[%clk 0:00:46.9]}
33... Kd7 {[%clk 0:00:08.8]} 34. c4 {[%clk 0:00:45.5]} 34... bxc4 {[%clk
0:00:06]} 35. Rb7+ {[%clk 0:00:45.3]} 35... Kc6 {[%clk 0:00:05.4]} 36. Rc7+
{[%clk 0:00:44.3]} 36... Kb6 {[%clk 0:00:05.1]} 37. Rxf7 {[%clk 0:00:44.1]}
37... c3 {[%clk 0:00:03.5]} 38. bxc3 {[%clk 0:00:44.2]} 38... Rxc3+ {[%clk
0:00:03.2]} 39. Ke4 {[%clk 0:00:43.2]} 39... Rxa3 {[%clk 0:00:04.1]} 40. d7
{[%clk 0:00:39.9]} 1-0

[Event "*** Titled Tuesday Blitz"]
[Site "Chess.com"]
[Date "2020.05.26"]
[Round "3"]
[White "Antelacus"]
[Black "chesstatour"]
[Result "1-0"]
[WhiteElo "2257"]
[BlackElo "1915"]
[TimeControl "180+1"]
[EndTime "10:27:32 PDT"]
[Termination "Antelacus won on time"]

1. d4 {[%clk 0:03:00.9]} 1... f5 {[%clk 0:02:59.1]} 2. g3 {[%clk 0:02:59.7]}
2... Nf6 {[%clk 0:02:58.1]} 3. Bg2 {[%clk 0:02:59.9]} 3... g6 {[%clk 0:02:57]}
4. c4 {[%clk 0:02:58.5]} 4... Bg7 {[%clk 0:02:57.3]} 5. Nc3 {[%clk 0:02:58.5]}
5... O-O {[%clk 0:02:58]} 6. Nf3 {[%clk 0:02:58.1]} 6... d6 {[%clk 0:02:58.5]}
7. O-O {[%clk 0:02:57.7]} 7... c6 {[%clk 0:02:59]} 8. d5 {[%clk 0:02:53.7]} 8...
Kh8 {[%clk 0:02:58.2]} 9. Nd4 {[%clk 0:02:51.7]} 9... e5 {[%clk 0:02:45.6]} 10.
dxe6 {[%clk 0:02:50.5]} 10... Na6 {[%clk 0:02:43]} 11. Bf4 {[%clk 0:02:34]}
11... Nh5 {[%clk 0:02:14.9]} 12. Be3 {[%clk 0:02:28.5]} 12... Nc5 {[%clk
0:02:02.1]} 13. Qd2 {[%clk 0:02:15.5]} 13... Nxe6 {[%clk 0:01:48.5]} 14. Nxe6
{[%clk 0:02:14.9]} 14... Bxe6 {[%clk 0:01:47.9]} 15. b3 {[%clk 0:02:13.3]} 15...
Qf6 {[%clk 0:01:11.5]} 16. Rac1 {[%clk 0:02:08.5]} 16... f4 {[%clk 0:01:02.5]}
17. gxf4 {[%clk 0:02:00.7]} 17... Nxf4 {[%clk 0:01:00.5]} 18. Bxf4 {[%clk
0:02:00.1]} 18... Qxf4 {[%clk 0:01:00.2]} 19. Qxf4 {[%clk 0:01:58.7]} 19... Rxf4
{[%clk 0:01:01.1]} 20. e3 {[%clk 0:01:48.8]} 20... Rf7 {[%clk 0:00:45.5]} 21.
Ne4 {[%clk 0:01:47.1]} 21... Rd7 {[%clk 0:00:43.5]} 22. Rcd1 {[%clk 0:01:43.8]}
22... Rad8 {[%clk 0:00:42.7]} 23. Ng5 {[%clk 0:01:38]} 23... Bg8 {[%clk
0:00:37.9]} 24. Bh3 {[%clk 0:01:36.3]} 24... Re7 {[%clk 0:00:36.7]} 25. Rd2
{[%clk 0:01:32.8]} 25... d5 {[%clk 0:00:18.7]} 26. Rfd1 {[%clk 0:01:30.3]} 26...
Rde8 {[%clk 0:00:17.7]} 27. cxd5 {[%clk 0:01:25.7]} 27... Bxd5 {[%clk
0:00:17.7]} 28. Bg2 {[%clk 0:01:24.1]} 28... Bxg2 {[%clk 0:00:12.7]} 29. Kxg2
{[%clk 0:01:24.4]} 29... h6 {[%clk 0:00:13.2]} 30. Nf3 {[%clk 0:01:21.7]} 30...
Rf7 {[%clk 0:00:13]} 31. Rd7 {[%clk 0:01:14]} 31... Ref8 {[%clk 0:00:12.8]} 32.
Rxf7 {[%clk 0:01:11.6]} 32... Rxf7 {[%clk 0:00:13.7]} 33. Rd8+ {[%clk
0:01:06.1]} 33... Kh7 {[%clk 0:00:13.6]} 34. Nd4 {[%clk 0:01:03.2]} 34... Bxd4
{[%clk 0:00:07.8]} 35. Rxd4 {[%clk 0:01:02.3]} 35... Re7 {[%clk 0:00:07.8]} 36.
e4 {[%clk 0:01:01.2]} 36... Kg7 {[%clk 0:00:08]} 37. f4 {[%clk 0:01:00.1]} 37...
Kf6 {[%clk 0:00:07.4]} 38. Kf3 {[%clk 0:01:00.3]} 38... Kf7 {[%clk 0:00:01.6]}
39. Rd6 {[%clk 0:00:54.6]} 39... Kg7 {[%clk 0:00:01.5]} 40. h4 {[%clk
0:00:51.2]} 40... Rf7 {[%clk 0:00:01.9]} 41. Kg4 {[%clk 0:00:47.6]} 41... Re7
{[%clk 0:00:01.9]} 42. e5 {[%clk 0:00:47.6]} 42... Rf7 {[%clk 0:00:01.8]} 43. b4
{[%clk 0:00:44.7]} 1-0

[Event "*** Titled Tuesday Blitz"]
[Site "Chess.com"]
[Date "2020.05.26"]
[Round "3"]
[White "PKCLUB"]
[Black "Maxim_e2e4"]
[Result "0-1"]
[WhiteElo "2615"]
[BlackElo "2337"]
[TimeControl "180+1"]
[EndTime "10:27:34 PDT"]
[Termination "Maxim_e2e4 won on time"]

1. Nf3 {[%clk 0:03:00.9]} 1... c5 {[%clk 0:02:57.7]} 2. b3 {[%clk 0:02:59]} 2...
Nc6 {[%clk 0:02:51.2]} 3. c4 {[%clk 0:02:57.2]} 3... e5 {[%clk 0:02:48.2]} 4.
Bb2 {[%clk 0:02:57.4]} 4... d6 {[%clk 0:02:46.8]} 5. d3 {[%clk 0:02:54.7]} 5...
g6 {[%clk 0:02:44.2]} 6. Nc3 {[%clk 0:02:54.3]} 6... Bg7 {[%clk 0:02:43.7]} 7.
g3 {[%clk 0:02:54.7]} 7... Nge7 {[%clk 0:02:39.7]} 8. Bg2 {[%clk 0:02:55]} 8...
O-O {[%clk 0:02:39.2]} 9. O-O {[%clk 0:02:55.5]} 9... Rb8 {[%clk 0:02:19.4]} 10.
Rb1 {[%clk 0:02:44.5]} 10... a6 {[%clk 0:02:18.3]} 11. a4 {[%clk 0:02:43.7]}
11... b6 {[%clk 0:02:08.4]} 12. Nd2 {[%clk 0:02:34.1]} 12... Nb4 {[%clk
0:01:55.2]} 13. Ba1 {[%clk 0:02:02.2]} 13... Be6 {[%clk 0:01:47.3]} 14. e3
{[%clk 0:01:59]} 14... d5 {[%clk 0:01:37.9]} 15. cxd5 {[%clk 0:01:57.1]} 15...
Nexd5 {[%clk 0:01:37.2]} 16. Nc4 {[%clk 0:01:25.8]} 16... Nxc3 {[%clk
0:01:02.4]} 17. Bxc3 {[%clk 0:01:26.7]} 17... Qxd3 {[%clk 0:01:02.1]} 18. Bxe5
{[%clk 0:01:14.3]} 18... Qxd1 {[%clk 0:00:43.4]} 19. Rfxd1 {[%clk 0:01:13.3]}
19... Bxe5 {[%clk 0:00:43.4]} 20. Nxe5 {[%clk 0:01:12.8]} 20... Rfd8 {[%clk
0:00:43.8]} 21. Nc4 {[%clk 0:01:02.7]} 21... Rxd1+ {[%clk 0:00:30.7]} 22. Rxd1
{[%clk 0:01:02.1]} 22... b5 {[%clk 0:00:31.4]} 23. axb5 {[%clk 0:00:55.2]} 23...
axb5 {[%clk 0:00:32.3]} 24. Na5 {[%clk 0:00:55.2]} 24... c4 {[%clk 0:00:28.8]}
25. bxc4 {[%clk 0:00:54.8]} 25... bxc4 {[%clk 0:00:29.7]} 26. Be4 {[%clk
0:00:26.3]} 26... c3 {[%clk 0:00:24.8]} 27. Rc1 {[%clk 0:00:23.1]} 27... Na2
{[%clk 0:00:23]} 28. Rd1 {[%clk 0:00:15.3]} 28... Rb2 {[%clk 0:00:21.2]} 29. Kg2
{[%clk 0:00:03]} 29... c2 {[%clk 0:00:20.5]} 30. Bxc2 {[%clk 0:00:02.9]} 30...
Rxc2 {[%clk 0:00:21.4]} 31. Nb7 {[%clk 0:00:01.7]} 31... Nc3 {[%clk 0:00:20]}
0-1

[Event "*** Titled Tuesday Blitz"]
[Site "Chess.com"]
[Date "2020.05.26"]
[Round "3"]
[White "WIDBIFS"]
[Black "Angry_Twin"]
[Result "1/2-1/2"]
[WhiteElo "2624"]
[BlackElo "2839"]
[TimeControl "180+1"]
[EndTime "10:27:35 PDT"]
[Termination "Game drawn by agreement"]

1. d4 {[%clk 0:03:00.9]} 1... Nf6 {[%clk 0:02:59.7]} 2. Nf3 {[%clk 0:03:01.3]}
2... g6 {[%clk 0:03:00.1]} 3. g3 {[%clk 0:03:01.2]} 3... Bg7 {[%clk 0:03:00.6]}
4. Bg2 {[%clk 0:03:01.9]} 4... d5 {[%clk 0:03:01.3]} 5. O-O {[%clk 0:03:01.6]}
5... O-O {[%clk 0:03:01.4]} 6. c4 {[%clk 0:03:02.2]} 6... c6 {[%clk 0:03:01.9]}
7. cxd5 {[%clk 0:03:02.2]} 7... cxd5 {[%clk 0:03:02.8]} 8. Ne5 {[%clk
0:03:02.9]} 8... e6 {[%clk 0:03:02.8]} 9. Nc3 {[%clk 0:03:02.2]} 9... Nfd7
{[%clk 0:03:03.1]} 10. f4 {[%clk 0:03:01]} 10... Nc6 {[%clk 0:03:02.3]} 11. e3
{[%clk 0:03:00.3]} 11... f6 {[%clk 0:02:56.8]} 12. Nd3 {[%clk 0:02:58]} 12...
Qe7 {[%clk 0:02:55.4]} 13. b3 {[%clk 0:02:53]} 13... Re8 {[%clk 0:02:45.3]} 14.
Nb5 {[%clk 0:02:35.4]} 14... Nb6 {[%clk 0:02:21.5]} 15. Ba3 {[%clk 0:02:34.4]}
15... Qd7 {[%clk 0:02:21.9]} 16. Rc1 {[%clk 0:01:45.7]} 16... Bf8 {[%clk
0:02:18.7]} 17. Bxf8 {[%clk 0:01:39.7]} 17... Rxf8 {[%clk 0:02:19.6]} 18. Nc5
{[%clk 0:01:39.3]} 18... Qe7 {[%clk 0:02:16.5]} 19. Qd2 {[%clk 0:01:26.5]} 19...
a6 {[%clk 0:02:14.7]} 20. Nc3 {[%clk 0:01:26.7]} 20... Nd7 {[%clk 0:02:13.8]}
21. N3a4 {[%clk 0:01:21.4]} 21... Nxc5 {[%clk 0:02:13.6]} 22. Nxc5 {[%clk
0:01:21.3]} 22... Rd8 {[%clk 0:02:12.4]} 23. Nd3 {[%clk 0:01:15.4]} 23... Bd7
{[%clk 0:02:10.5]} 24. Rc2 {[%clk 0:01:13.3]} 24... Be8 {[%clk 0:02:10.3]} 25.
Rfc1 {[%clk 0:01:13.5]} 25... Rac8 {[%clk 0:02:10.9]} 26. h4 {[%clk 0:01:03.1]}
26... Kg7 {[%clk 0:02:10]} 27. Kh2 {[%clk 0:01:02.7]} 27... Rc7 {[%clk
0:02:06.2]} 28. Nb4 {[%clk 0:00:49.7]} 28... Rdc8 {[%clk 0:02:04.3]} 29. Nxc6
{[%clk 0:00:47.9]} 29... Rxc6 {[%clk 0:02:05.2]} 30. Rxc6 {[%clk 0:00:48.2]}
30... Rxc6 {[%clk 0:02:06.1]} 31. Rxc6 {[%clk 0:00:45.5]} 31... Bxc6 {[%clk
0:02:07]} 32. Bf1 {[%clk 0:00:36.5]} 32... Kf7 {[%clk 0:01:58.5]} 33. b4 {[%clk
0:00:31.4]} 33... e5 {[%clk 0:01:57.3]} 34. dxe5 {[%clk 0:00:19.1]} 34... fxe5
{[%clk 0:01:58.2]} 35. fxe5 {[%clk 0:00:20]} 35... Qxe5 {[%clk 0:01:58.3]} 36.
Qd4 {[%clk 0:00:20.7]} 36... Qf5 {[%clk 0:01:52.3]} 37. Qf4 {[%clk 0:00:19.7]}
37... Qxf4 {[%clk 0:01:00.5]} 38. gxf4 {[%clk 0:00:19.6]} 38... Ke6 {[%clk
0:01:00.8]} 39. Bd3 {[%clk 0:00:09]} 39... Kf6 {[%clk 0:00:34]} 1/2-1/2

[Event "*** Titled Tuesday Blitz"]
[Site "Chess.com"]
[Date "2020.05.26"]
[Round "3"]
[White "Two_Towers_Krakow"]
[Black "KuzubovYuriy"]
[Result "0-1"]
[WhiteElo "2433"]
[BlackElo "2768"]
[TimeControl "180+1"]
[EndTime "10:27:36 PDT"]
[Termination "KuzubovYuriy won by resignation"]

1. d4 {[%clk 0:03:00.9]} 1... Nf6 {[%clk 0:03:00.2]} 2. c4 {[%clk 0:03:00.7]}
2... e6 {[%clk 0:03:00.7]} 3. Nf3 {[%clk 0:03:01]} 3... d5 {[%clk 0:02:58.7]} 4.
Bg5 {[%clk 0:02:59.9]} 4... h6 {[%clk 0:02:57.9]} 5. Bxf6 {[%clk 0:02:59.3]}
5... Qxf6 {[%clk 0:02:58.8]} 6. e3 {[%clk 0:02:59.5]} 6... c6 {[%clk 0:02:57.1]}
7. Nc3 {[%clk 0:03:00]} 7... Nd7 {[%clk 0:02:57]} 8. Bd3 {[%clk 0:02:49.2]} 8...
g6 {[%clk 0:02:49.7]} 9. O-O {[%clk 0:02:46.2]} 9... Bg7 {[%clk 0:02:47.6]} 10.
cxd5 {[%clk 0:02:46.8]} 10... exd5 {[%clk 0:02:46.3]} 11. b4 {[%clk 0:02:47.4]}
11... Qd6 {[%clk 0:02:38.6]} 12. b5 {[%clk 0:02:46.9]} 12... c5 {[%clk 0:02:39]}
13. Rc1 {[%clk 0:02:43]} 13... c4 {[%clk 0:02:32.8]} 14. Bb1 {[%clk 0:02:41.5]}
14... f5 {[%clk 0:02:27.2]} 15. a4 {[%clk 0:02:29.9]} 15... O-O {[%clk
0:02:24.2]} 16. Ba2 {[%clk 0:02:29.4]} 16... Kh7 {[%clk 0:02:22.4]} 17. Re1
{[%clk 0:02:25]} 17... a5 {[%clk 0:02:15.9]} 18. h3 {[%clk 0:02:16.1]} 18... Nb6
{[%clk 0:02:14.3]} 19. Ne5 {[%clk 0:02:15.5]} 19... Bxe5 {[%clk 0:02:12.8]} 20.
dxe5 {[%clk 0:02:15.2]} 20... Qxe5 {[%clk 0:02:13.2]} 21. Qd2 {[%clk 0:02:14.1]}
21... Be6 {[%clk 0:02:11]} 22. Red1 {[%clk 0:02:12.5]} 22... Rae8 {[%clk
0:02:08.4]} 23. Rc2 {[%clk 0:01:59.8]} 23... f4 {[%clk 0:02:03.3]} 24. Qd4
{[%clk 0:01:49.2]} 24... Qxd4 {[%clk 0:01:59.5]} 25. Rxd4 {[%clk 0:01:50.1]}
25... fxe3 {[%clk 0:01:54.2]} 26. fxe3 {[%clk 0:01:51]} 26... Bf5 {[%clk
0:01:50.3]} 27. e4 {[%clk 0:01:48.1]} 27... Bxe4 {[%clk 0:01:47.7]} 28. Nxe4
{[%clk 0:01:47.3]} 28... Rf4 {[%clk 0:01:23.9]} 29. Bxc4 {[%clk 0:01:01.7]}
29... Nxc4 {[%clk 0:01:16.1]} 30. Rxd5 {[%clk 0:00:55.5]} 30... Rfxe4 {[%clk
0:01:02.3]} 31. Rd7+ {[%clk 0:00:55.2]} 31... Kg8 {[%clk 0:01:02.5]} 32. Rxb7
{[%clk 0:00:55.4]} 32... Nd6 {[%clk 0:00:55.6]} 33. Ra7 {[%clk 0:00:54.3]} 33...
Rxa4 {[%clk 0:00:50.4]} 34. Rc6 {[%clk 0:00:54.2]} 34... Rd8 {[%clk 0:00:42]}
35. b6 {[%clk 0:00:53.4]} 35... Rb4 {[%clk 0:00:35.3]} 36. b7 {[%clk 0:00:52.9]}
36... Rxb7 {[%clk 0:00:33.7]} 37. Rxd6 {[%clk 0:00:52.3]} 37... Rxa7 {[%clk
0:00:33.9]} 38. Rxd8+ {[%clk 0:00:51.2]} 38... Kf7 {[%clk 0:00:34.5]} 39. Rd3
{[%clk 0:00:51.6]} 39... a4 {[%clk 0:00:35]} 40. Ra3 {[%clk 0:00:52.2]} 40...
Ke6 {[%clk 0:00:35.5]} 41. Kf2 {[%clk 0:00:52.9]} 41... Kd5 {[%clk 0:00:35.9]}
42. Ke2 {[%clk 0:00:53.6]} 42... Kc4 {[%clk 0:00:32.5]} 43. Kd2 {[%clk
0:00:54.2]} 43... Kb4 {[%clk 0:00:32.3]} 44. Ra1 {[%clk 0:00:53.8]} 44... a3
{[%clk 0:00:32.6]} 45. Kc2 {[%clk 0:00:54.7]} 45... Rc7+ {[%clk 0:00:32]} 46.
Kd3 {[%clk 0:00:51.3]} 46... Rc3+ {[%clk 0:00:31.9]} 47. Kd2 {[%clk 0:00:50.2]}
47... Rg3 {[%clk 0:00:31.9]} 48. Rb1+ {[%clk 0:00:50.4]} 48... Ka4 {[%clk
0:00:30.9]} 49. Rb6 {[%clk 0:00:50.7]} 49... Rxg2+ {[%clk 0:00:30.7]} 50. Ke3
{[%clk 0:00:51.3]} 50... a2 {[%clk 0:00:30.2]} 51. Ra6+ {[%clk 0:00:50]} 51...
Kb3 {[%clk 0:00:30.5]} 52. Kf3 {[%clk 0:00:50.3]} 52... Rc2 {[%clk 0:00:30.2]}
53. h4 {[%clk 0:00:47.2]} 53... Kb2 {[%clk 0:00:30.2]} 54. Rb6+ {[%clk
0:00:46.7]} 54... Kc1 {[%clk 0:00:30.6]} 55. Ra6 {[%clk 0:00:46.9]} 55... Kb1
{[%clk 0:00:31.2]} 56. Rb6+ {[%clk 0:00:45.8]} 56... Rb2 {[%clk 0:00:31.6]} 0-1

[Event "*** Titled Tuesday Blitz"]
[Site "Chess.com"]
[Date "2020.05.26"]
[Round "3"]
[White "Onwgs"]
[Black "gumimis"]
[Result "1-0"]
[WhiteElo "2481"]
[BlackElo "2192"]
[TimeControl "180+1"]
[EndTime "10:27:37 PDT"]
[Termination "Onwgs won on time"]

1. e4 {[%clk 0:02:26.4]} 1... c5 {[%clk 0:02:59.7]} 2. c3 {[%clk 0:02:25.7]}
2... d5 {[%clk 0:02:59.8]} 3. exd5 {[%clk 0:02:26]} 3... Qxd5 {[%clk 0:03:00.7]}
4. d4 {[%clk 0:02:26.3]} 4... Nf6 {[%clk 0:03:00.6]} 5. Nf3 {[%clk 0:02:24.8]}
5... Bg4 {[%clk 0:03:00.7]} 6. dxc5 {[%clk 0:02:24.6]} 6... Qxd1+ {[%clk
0:02:52.6]} 7. Kxd1 {[%clk 0:02:25.5]} 7... e5 {[%clk 0:02:53.2]} 8. b4 {[%clk
0:02:25.1]} 8... e4 {[%clk 0:02:49.9]} 9. h3 {[%clk 0:02:25.1]} 9... Bh5 {[%clk
0:02:44.2]} 10. g4 {[%clk 0:02:21.7]} 10... Nxg4 {[%clk 0:02:40.2]} 11. hxg4
{[%clk 0:02:21.8]} 11... Bxg4 {[%clk 0:02:40.3]} 12. Nd2 {[%clk 0:02:22.2]}
12... Nc6 {[%clk 0:02:20.6]} 13. Bh3 {[%clk 0:02:17.3]} 13... Bxh3 {[%clk
0:02:09.3]} 14. Rxh3 {[%clk 0:02:18.2]} 14... exf3 {[%clk 0:02:09.6]} 15. Rxf3
{[%clk 0:02:15.3]} 15... Be7 {[%clk 0:01:58.8]} 16. Kc2 {[%clk 0:02:12.7]} 16...
O-O {[%clk 0:01:55.7]} 17. Nc4 {[%clk 0:02:08.7]} 17... a6 {[%clk 0:01:44.2]}
18. Bf4 {[%clk 0:02:04]} 18... Bf6 {[%clk 0:01:35.7]} 19. Rg1 {[%clk 0:02:01.8]}
19... Rfe8 {[%clk 0:01:31.2]} 20. Nd6 {[%clk 0:01:57.8]} 20... Re2+ {[%clk
0:01:27.9]} 21. Kb3 {[%clk 0:01:57.6]} 21... Be5 {[%clk 0:00:56]} 22. Be3 {[%clk
0:01:49.7]} 22... a5 {[%clk 0:00:17.7]} 23. Nxf7 {[%clk 0:01:46.2]} 23... axb4
{[%clk 0:00:12.4]} 24. Nh6+ {[%clk 0:01:43.3]} 24... Kh8 {[%clk 0:00:12.5]} 25.
Nf7+ {[%clk 0:01:41.9]} 25... Kg8 {[%clk 0:00:12.6]} 26. Nxe5 {[%clk 0:01:38.2]}
26... Ra3+ {[%clk 0:00:12]} 27. Kc4 {[%clk 0:01:37.3]} 27... Rxc3+ {[%clk
0:00:10.5]} 28. Kd5 {[%clk 0:01:34.5]} 28... Nxe5 {[%clk 0:00:10.8]} 29. Kxe5
{[%clk 0:01:35]} 29... Rxa2 {[%clk 0:00:09.7]} 30. Ke6 {[%clk 0:01:30.3]} 30...
Ra8 {[%clk 0:00:03.4]} 31. Rf7 {[%clk 0:01:26.1]} 31... g6 {[%clk 0:00:02.9]}
32. Bd4 {[%clk 0:01:23.3]} 32... Rd3 {[%clk 0:00:02.4]} 33. Rg7+ {[%clk
0:01:22.3]} 33... Kf8 {[%clk 0:00:02.8]} 34. Rxh7 {[%clk 0:01:20.1]} 34... Re8+
{[%clk 0:00:02.9]} 35. Kf6 {[%clk 0:01:14.7]} 35... Rf3+ {[%clk 0:00:01.1]} 36.
Kxg6 {[%clk 0:01:13.5]} 36... b3 {[%clk 0:00:01.3]} 37. Rh8+ {[%clk 0:01:11.8]}
37... Ke7 {[%clk 0:00:01.6]} 38. Re1+ {[%clk 0:01:12.7]} 38... Kd7 {[%clk
0:00:01.9]} 39. Rhxe8 {[%clk 0:01:13.5]} 39... b2 {[%clk 0:00:01.4]} 40. Bxb2
{[%clk 0:01:12.3]} 40... Rxf2 {[%clk 0:00:01.8]} 41. R8e7+ {[%clk 0:01:11.5]}
41... Kc6 {[%clk 0:00:02.1]} 42. Bd4 {[%clk 0:01:09.5]} 1-0